fUST/lending_fUST_20250105
["ID","MTS","AMOUNT","RATE_DAILY","PERIOD"]
[347740045,1736088647783,-151.0,0.00022833,7]
[347740047,1736088647793,-151.0,0.00022833,7]
[347740049,1736088647802,-151.0,0.00022833,7]
[347740051,1736088647812,-151.0,0.00022833,7]
[347740053,1736088647821,-151.0,0.00022833,7]
[347740055,1736088647830,-151.0,0.00022833,7]
[347740057,1736088647840,-246.605425,0.00022833,7]
[347740059,1736088647849,-151.0,0.00022833,7]
[347740061,1736088647859,-151.0,0.00022833,7]
[347740063,1736088647867,-260.957164,0.00022844,7]
[347740065,1736088647877,-151.0,0.00022844,7]
[347740067,1736088647886,-151.0,0.00022844,7]
[347740069,1736088647896,-151.0,0.00022844,7]
[347740071,1736088647905,-151.0,0.00022844,7]
[347740073,1736088647914,-151.0,0.00022844,7]
[347740075,1736088647924,-151.0,0.00022844,7]
[347740077,1736088647934,-151.0,0.00022844,7]
[347740079,1736088647944,-734.618429,0.00022844,7]
[347740081,1736088647953,-734.618429,0.00022844,7]
[347740083,1736088647963,-734.618429,0.00022844,7]
[347740085,1736088647973,-734.618429,0.00022844,7]
[347740087,1736088647982,-734.618429,0.00022844,7]
[347740089,1736088647992,-734.618429,0.00022844,7]
[347740091,1736088648002,-734.618429,0.00022844,7]
[347740093,1736088648011,-734.618429,0.00022844,7]
[347740095,1736088648021,-734.618429,0.00022844,7]
[347740097,1736088648030,-734.618429,0.00022844,7]
[347740099,1736088648040,-734.618429,0.00022844,7]
[347740102,1736088648050,-734.618429,0.00022844,7]
[347740104,1736088648059,-734.618429,0.00022844,7]
[347740106,1736088648069,-734.618429,0.00022844,7]
[347740108,1736088648078,-734.618429,0.00022844,7]
[347740110,1736088648088,-734.618429,0.00022844,7]
[347740112,1736088648097,-734.618429,0.00022844,7]
[347740114,1736088648107,-734.618429,0.00022844,7]
[347740116,1736088648117,-734.618429,0.00022844,7]
[347740118,1736088648127,-734.618431,0.00022844,7]
[347740120,1736088648137,-266.097755,0.00022844,7]
[347740122,1736088648147,-266.097755,0.00022844,7]
[347740124,1736088648156,-266.097755,0.00022844,7]
[347740126,1736088648166,-266.097755,0.00022844,7]
[347740128,1736088648176,-266.097755,0.00022844,7]
[347740130,1736088648186,-266.097755,0.00022844,7]
[347740132,1736088648198,-266.097755,0.00022844,7]
[347740134,1736088648207,-266.097755,0.00022844,7]
[347740136,1736088648217,-266.097755,0.00022844,7]
[347740138,1736088648227,-266.097755,0.00022844,7]
[347740140,1736088648237,-151.0,0.00022844,7]
[347740142,1736088648247,-266.097755,0.00022844,7]
[347740144,1736088648256,-151.0,0.00022844,7]
[347740146,1736088648266,-151.0,0.00022844,7]
[347740148,1736088648275,-266.097755,0.00022844,7]
[347740150,1736088648285,-266.097755,0.00022844,7]
[347740152,1736088648294,-266.097755,0.00022844,7]
[347740154,1736088648304,-266.097755,0.00022844,7]
[347740156,1736088648314,-266.097755,0.00022844,7]
[347740158,1736088648323,-266.097755,0.00022844,7]
[347740161,1736088648334,-266.097755,0.00022844,7]
[347740162,1736088648343,-266.097755,0.00022844,7]
[347740164,1736088648353,-266.09774561,0.00022844,7]
[347740166,1736088648364,-1139.37706082,0.00022844,2]
[347740169,1736088648375,-14571.18907045,0.00022844,2]
[347740171,1736088648384,-425166.22350414,0.00022845,10]
[347740173,1736088648401,-6582.00962915,0.00022845,10]
[347740175,1736088648413,-10737.10266231,0.00022845,10]
[347740178,1736088648425,-463.75605643,0.00022845,10]
[347740226,1736088648883,-357.12597502,0.00020269,3]
[347740228,1736088648893,-41693.71582022,0.00022845,10]
[347740231,1736088648905,-3541.12198585,0.00022845,10]
[347740233,1736088648916,-33069.048125,0.00022845,10]
[347744906,1736088756225,223.622423,0.00013973,2]
[347744922,1736089628140,-257.95834297,0.00018366,2]
[347744923,1736089628165,-460.8905945,0.00018739,2]
[347744924,1736089628186,-312.834485,0.0001908,2]
[347744925,1736089628208,-501.98718759,0.000191,2]
[347744926,1736089628230,-1500.0,0.00019178,2]
[347744927,1736089628253,-444.53,0.000193,2]
[347744928,1736089628275,-500.0,0.00019724,2]
[347744929,1736089628298,-196.39252214,0.00019897,2]
[347744930,1736089628324,-230.66771893,0.00019897,2]
[347744931,1736089628347,-153.3217815,0.000199,2]
[347744932,1736089628369,-500.0,0.00019973,2]
[347744933,1736089628393,-300.0,0.00019995,2]
[347744934,1736089628416,-553.12,0.00019996,3]
[347744935,1736089628440,-500.0,0.00019996,3]
[347744936,1736089628464,-500.0,0.00019996,3]
[347744937,1736089628623,-500.0,0.00019996,3]
[347744938,1736089628647,-502.7,0.00019996,3]
[347744939,1736089628669,-500.0,0.00019996,3]
[347744940,1736089628695,-500.0,0.00019996,3]
[347744941,1736089628717,-500.0,0.00019997,3]
[347744942,1736089628741,-500.0,0.00019997,3]
[347744943,1736089628763,-500.0,0.00019997,3]
[347744944,1736089628786,-593.67,0.00019997,3]
[347744945,1736089628807,-334.13365012,0.00019997,3]
[347744946,1736089628829,-500.0,0.00019997,3]
[347744947,1736089628850,-500.0,0.00019997,3]
[347744948,1736089628872,-500.0,0.00019997,3]
[347744949,1736089628894,-500.0,0.00019997,3]
[347744950,1736089628915,-500.0,0.00019997,3]
[347744951,1736089628936,-500.0,0.00019997,3]
[347744952,1736089628957,-524.73604284,0.00019997,3]
[347744953,1736089628978,-500.0,0.00019997,3]
[347744954,1736089628999,-500.0,0.00019997,3]
[347744955,1736089629021,-500.0,0.00019997,3]
[347744956,1736089629043,-500.0,0.00019997,3]
[347744957,1736089629065,-500.0,0.00019997,3]
[347744958,1736089629086,-500.0,0.00019997,3]
[347744959,1736089629108,-500.0,0.00019997,3]
[347744960,1736089629130,-500.0,0.00019997,3]
[347744961,1736089629151,-500.0,0.00019997,3]
[347744962,1736089629173,-500.0,0.00019997,3]
[347744963,1736089629195,-500.0,0.00019997,3]
[347744964,1736089629217,-500.0,0.00019997,3]
[347744965,1736089629238,-500.0,0.00019997,3]
[347744966,1736089629260,-500.0,0.00019997,3]
[347744967,1736089629281,-500.0,0.00019997,3]
[347744968,1736089629303,-500.0,0.00019997,3]
[347744969,1736089629325,-500.0,0.00019997,3]
[347744970,1736089629346,-500.0,0.00019997,3]
[347744971,1736089629369,-500.0,0.00019997,3]
[347744972,1736089629393,-500.0,0.00019997,3]
[347744973,1736089629415,-196.55512591,0.00019997,3]
[347744974,1736089629440,-500.0,0.00019997,3]
[347744975,1736089629463,-359.47777777,0.00019997,3]
[347744976,1736089629488,-500.0,0.00019997,3]
[347744977,1736089629511,-500.0,0.00019997,3]
[347744978,1736089629535,-242.85073924,0.00019997,3]
[347744979,1736089629559,-500.0,0.00019997,3]
[347744980,1736089629583,-500.0,0.00019997,3]
[347744981,1736089629606,-500.0,0.00019997,3]
[347744982,1736089629630,-500.0,0.00019997,3]
[347744983,1736089629653,-500.0,0.00019997,3]
[347744984,1736089629676,-500.0,0.00019997,3]
[347744985,1736089629701,-500.0,0.00019997,3]
[347744986,1736089629722,-500.0,0.00019997,3]
[347744987,1736089629746,-531.60481692,0.00019997,3]
[347744988,1736089629770,-500.0,0.00019997,3]
[347744989,1736089629795,-500.0,0.00019997,3]
[347744990,1736089629818,-500.0,0.00019997,3]
[347744991,1736089629840,-617.85879928,0.00019997,3]
[347744992,1736089629861,-513.64432613,0.00019997,3]
[347744993,1736089629883,-500.0,0.00019997,3]
[347744994,1736089629905,-500.0,0.00019997,3]
[347744995,1736089629928,-500.0,0.00019997,3]
[347744996,1736089629951,-500.0,0.00019997,3]
[347744997,1736089629974,-500.0,0.00019997,3]
[347744998,1736089629997,-647.19,0.00019997,3]
[347744999,1736089630019,-500.0,0.00019997,3]
[347745000,1736089630044,-500.0,0.00019997,3]
[347745001,1736089630066,-500.0,0.00019997,3]
[347745002,1736089630090,-500.0,0.00019997,3]
[347745003,1736089630111,-500.0,0.00019997,3]
[347745004,1736089630133,-500.0,0.00019997,3]
[347745005,1736089630155,-516.33222642,0.00019997,3]
[347745006,1736089630177,-500.0,0.00019997,3]
[347745007,1736089630198,-500.0,0.00019997,3]
[347745008,1736089630220,-500.0,0.00019997,3]
[347745009,1736089630242,-500.0,0.00019997,3]
[347745010,1736089630264,-209.55032073,0.00019997,3]
[347745011,1736089650760,212.441301,0.00013973,2]
[347745057,1736089832738,-400.08,0.000193,2]
[347745058,1736089832751,-302.84859387,0.00019817,2]
[347745059,1736089832761,-300.0,0.00019995,2]
[347745060,1736089832770,-500.0,0.00019996,3]
[347745061,1736089832779,-500.0,0.00019996,3]
[347745062,1736089832789,-500.0,0.00019996,3]
[347745063,1736089832798,-500.0,0.00019996,3]
[347745064,1736089832807,-500.0,0.00019996,3]
[347745065,1736089832818,-500.0,0.00019996,3]
[347745066,1736089832828,-500.0,0.00019996,3]
[347745067,1736089832837,-543.99967927,0.00019996,3]
[347745068,1736089832846,-601.51,0.00019996,3]
[347745069,1736089832856,-500.0,0.00019996,3]
[347745070,1736089832865,-500.0,0.00019996,3]
[347745071,1736089832875,-500.0,0.00019996,3]
[347745072,1736089832884,-500.0,0.00019996,3]
[347745073,1736089832893,-500.0,0.00019996,3]
[347745074,1736089832903,-500.0,0.00019996,3]
[347745076,1736089832912,-500.0,0.00019996,3]
[347745077,1736089832922,-500.0,0.00019996,3]
[347745078,1736089832931,-545.32,0.00019996,3]
[347745079,1736089832940,-500.0,0.00019996,3]
[347745080,1736089832950,-500.0,0.00019997,3]
[347745081,1736089832959,-500.0,0.00019997,3]
[347745082,1736089832969,-580.75,0.00019997,3]
[347745083,1736089832980,-500.0,0.00019997,3]
[347745084,1736089832990,-500.0,0.00019997,3]
[347745085,1736089833000,-500.0,0.00019997,3]
[347745086,1736089833009,-115.06061297,0.00019997,3]
[347745087,1736089833126,-390.47649008,0.00019997,3]
[347745088,1736089833136,-500.0,0.00019997,3]
[347745089,1736089833146,-500.0,0.00019997,3]
[347745090,1736089833156,-500.0,0.00019997,3]
[347745091,1736089833165,-500.0,0.00019997,3]
[347745092,1736089833175,-500.0,0.00019997,3]
[347745093,1736089833185,-500.0,0.00019997,3]
[347745094,1736089833195,-500.0,0.00019997,3]
[347745095,1736089833206,-500.0,0.00019997,3]
[347745096,1736089833215,-500.0,0.00019997,3]
[347745097,1736089833226,-500.0,0.00019997,3]
[347745098,1736089833236,-500.0,0.00019997,3]
[347745099,1736089833246,-500.0,0.00019997,3]
[347745100,1736089833256,-500.0,0.00019997,3]
[347745101,1736089833266,-500.0,0.00019997,3]
[347745102,1736089833276,-500.0,0.00019997,3]
[347745103,1736089833286,-500.0,0.00019997,3]
[347745104,1736089833296,-500.0,0.00019997,3]
[347745105,1736089833306,-500.0,0.00019997,3]
[347745106,1736089833316,-500.0,0.00019997,3]
[347745107,1736089833328,-500.0,0.00019997,3]
[347745108,1736089833338,-128.19019596,0.00019997,3]
[347745109,1736089833375,-394.89348544,0.00019997,3]
[347745110,1736089833385,-341.12651456,0.00019997,3]
[347745118,1736089838299,-158.87348544,0.00019997,3]
[347745119,1736089838309,-93.27891264,0.00019997,3]
[347745120,1736089838320,-406.72108736,0.00019997,3]
[347745121,1736089838330,-103.04391264,0.00019997,3]
[347745122,1736089838354,-504.87608736,0.00019997,3]
[347745123,1736089838364,-500.0,0.00019997,3]
[347745125,1736089838374,-500.0,0.00019997,3]
[347745127,1736089838383,-500.0,0.00019997,3]
[347745128,1736089838393,-500.0,0.00019997,3]
[347745130,1736089838403,-500.0,0.00019997,3]
[347745132,1736089838414,-500.0,0.00019997,3]
[347745133,1736089838423,-556.66,0.00019997,3]
[347745135,1736089838433,-500.0,0.00019997,3]
[347745137,1736089838443,-500.0,0.00019997,3]
[347745139,1736089838452,-500.0,0.00019997,3]
[347745140,1736089838462,-500.0,0.00019997,3]
[347745142,1736089838471,-500.0,0.00019997,3]
[347745144,1736089838482,-500.0,0.00019997,3]
[347745146,1736089838491,-572.91,0.00019997,3]
[347745147,1736089838500,-500.0,0.00019997,3]
[347745149,1736089838509,-348.50150685,0.00019997,3]
[347745150,1736089838518,-422.53074768,0.00019997,3]
[347745155,1736089838575,-77.46925232,0.00019997,3]
[347745157,1736089838585,-2997.46,0.00019997,3]
[347745159,1736089838594,-500.0,0.00019997,3]
[347745160,1736089838604,-500.0,0.00019997,3]
[347745161,1736089838614,-500.0,0.00019997,3]
[347745162,1736089838623,-500.0,0.00019997,3]
[347745163,1736089838632,-500.0,0.00019997,3]
[347745164,1736089838642,-500.0,0.00019997,3]
[347745165,1736089838651,-500.0,0.00019997,3]
[347745166,1736089838661,-500.0,0.00019997,3]
[347745167,1736089838670,-500.0,0.00019997,3]
[347745168,1736089838680,-500.0,0.00019997,3]
[347745169,1736089838689,-500.0,0.00019997,3]
[347745170,1736089838698,-503.23685219,0.00019997,3]
[347745171,1736089838707,-500.0,0.00019997,3]
[347745172,1736089838717,-500.0,0.00019997,3]
[347745173,1736089838726,-500.0,0.00019997,3]
[347745174,1736089838737,-621.94,0.00019997,3]
[347745175,1736089838746,-500.0,0.00019997,3]
[347745176,1736089838757,-500.0,0.00019997,3]
[347745177,1736089838767,-500.0,0.00019997,3]
[347745178,1736089838776,-500.0,0.00019997,3]
[347745179,1736089838786,-645.75,0.00019997,3]
[347745180,1736089838795,-500.0,0.00019997,3]
[347745181,1736089838810,-500.0,0.00019997,3]
[347745182,1736089838820,-500.0,0.00019998,3]
[347745183,1736089838829,-500.0,0.00019998,3]
[347745184,1736089838841,-500.0,0.00019998,3]
[347745185,1736089838851,-500.0,0.00019998,3]
[347745186,1736089838861,-500.0,0.00019998,3]
[347745187,1736089838870,-500.0,0.00019998,3]
[347745188,1736089838880,-500.0,0.00019998,3]
[347745189,1736089838890,-500.0,0.00019998,3]
[347745190,1736089838899,-500.0,0.00019998,3]
[347745191,1736089838909,-248.55303715,0.00019998,3]
[347745192,1736089838919,-500.0,0.00019998,3]
[347745193,1736089838929,-500.0,0.00019998,3]
[347745194,1736089838939,-179.5603586,0.00019998,3]
[347745195,1736089838949,-500.0,0.00019998,3]
[347745196,1736089838959,-500.0,0.00019998,3]
[347745197,1736089838969,-500.0,0.00019998,3]
[347745198,1736089838980,-500.0,0.00019998,3]
[347745199,1736089838990,-500.0,0.00019998,3]
[347745200,1736089839000,-500.0,0.00019998,3]
[347745201,1736089839010,-500.0,0.00019998,3]
[347745202,1736089839021,-500.0,0.00019998,3]
[347745203,1736089839031,-500.0,0.00019998,3]
[347745204,1736089839040,-500.0,0.00019998,3]
[347745205,1736089839050,-500.0,0.00019998,3]
[347745206,1736089839060,-500.0,0.00019998,3]
[347745207,1736089839070,-500.0,0.00019998,3]
[347745208,1736089839080,-500.0,0.00019998,3]
[347745209,1736089839090,-500.0,0.00019998,3]
[347745210,1736089839099,-500.0,0.00019998,3]
[347745211,1736089839109,-500.0,0.00019998,3]
[347745212,1736089839119,-535.7,0.00019998,3]
[347745213,1736089839129,-500.0,0.00019998,3]
[347745214,1736089839139,-500.0,0.00019998,3]
[347745215,1736089839148,-500.0,0.00019998,3]
[347745216,1736089839157,-500.0,0.00019998,3]
[347745217,1736089839166,-500.0,0.00019998,3]
[347745218,1736089839176,-500.0,0.00019998,3]
[347745219,1736089839186,-502.6781038,0.00019998,3]
[347745220,1736089839195,-323.75931422,0.00019998,3]
[347745221,1736089839205,-501.27383598,0.00019998,3]
[347745222,1736089839215,-500.0,0.00019998,3]
[347745223,1736089839224,-499.40260275,0.00019998,3]
[347745224,1736089839235,-500.0,0.00019998,3]
[347745225,1736089839245,-500.0,0.00019998,3]
[347745226,1736089839254,-500.0,0.00019998,3]
[347745227,1736089839264,-507.18036495,0.00019998,3]
[347745228,1736089839273,-500.0,0.00019998,3]
[347745229,1736089839281,-500.0,0.00019998,3]
[347745230,1736089839291,-500.0,0.00019998,3]
[347745231,1736089839300,-217.11920871,0.00019998,3]
[347745232,1736089839310,-525.06,0.00019998,3]
[347745233,1736089839319,-523.85798653,0.00019998,3]
[347745234,1736089839329,-500.0,0.00019998,3]
[347745235,1736089839339,-500.0,0.00019998,3]
[347745236,1736089839348,-500.0,0.00019998,3]
[347745237,1736089839358,-500.0,0.00019998,3]
[347745238,1736089839368,-500.0,0.00019998,3]
[347745239,1736089839378,-508.21318147,0.00019998,3]
[347745240,1736089839388,-500.0,0.00019998,3]
[347745241,1736089839398,-500.0,0.00019999,3]
[347745242,1736089839408,-500.0,0.00019999,3]
[347745243,1736089839417,-5099.0,0.0002,2]
[347745244,1736089839426,-454.27289081,0.00020016,4]
[347745245,1736089839437,-153.32178138,0.00020076,2]
[347745246,1736089839447,-201.2645565,0.00020168,2]
[347745247,1736089839457,-453.66789542,0.00020214,4]
[347745248,1736089839467,-153.32178138,0.00020253,2]
[347745249,1736089839481,-499.0,0.00020267,2]
[347745250,1736089839495,-500.0,0.00020267,2]
[347745251,1736089839508,-500.0,0.00020267,2]
[347745252,1736089839520,-608.0933036,0.00020267,2]
[347745253,1736089839533,-500.0,0.00020267,2]
[347745254,1736089839545,-500.0,0.00020267,2]
[347745255,1736089839556,-500.0,0.00020267,2]
[347745256,1736089839568,-500.0,0.00020267,2]
[347745257,1736089839579,-555.64597288,0.00020267,2]
[347745258,1736089839591,-500.0,0.00020268,3]
[347745259,1736089839604,-500.0,0.00020268,3]
[347745260,1736089839616,-500.0,0.00020268,3]
[347745261,1736089839628,-500.0,0.00020268,3]
[347745262,1736089839639,-500.0,0.00020268,3]
[347745263,1736089839651,-270.55640283,0.00020268,3]
[347745264,1736089839663,-500.0,0.00020268,3]
[347745265,1736089839675,-500.0,0.00020268,3]
[347745266,1736089839687,-500.0,0.00020268,3]
[347745267,1736089839698,-500.0,0.00020268,3]
[347745268,1736089839709,-500.0,0.00020268,3]
[347745269,1736089839720,-500.0,0.00020268,3]
[347745270,1736089839733,-543.8,0.00020268,3]
[347745271,1736089839745,-500.0,0.00020268,3]
[347745272,1736089839758,-500.0,0.00020268,3]
[347745273,1736089839770,-500.0,0.00020268,3]
[347745274,1736089839783,-500.0,0.00020268,3]
[347745275,1736089839795,-500.0,0.00020268,3]
[347745276,1736089839813,-500.0,0.00020268,3]
[347745277,1736089839824,-500.0,0.00020268,3]
[347745278,1736089839838,-530.40897516,0.00020268,3]
[347745279,1736089839849,-500.0,0.00020268,3]
[347745280,1736089839861,-500.0,0.00020268,3]
[347745281,1736089839873,-500.0,0.00020268,3]
[347745282,1736089839885,-500.0,0.00020268,3]
[347745283,1736089839898,-500.0,0.00020268,3]
[347745284,1736089839910,-500.0,0.00020268,3]
[347745285,1736089839921,-500.0,0.00020268,3]
[347745286,1736089839933,-500.0,0.00020268,3]
[347745288,1736089839944,-501.51902783,0.00020269,3]
[347745289,1736089839956,-500.0,0.00020269,3]
[347745290,1736089839967,-500.0,0.00020269,3]
[347745291,1736089839979,-500.0,0.00020269,3]
[347745292,1736089839989,-522.18235512,0.00020269,3]
[347745293,1736089840000,-500.0,0.00020269,3]
[347745294,1736089840010,-500.0,0.00020269,3]
[347745295,1736089840024,-646.49,0.00020269,3]
[347745296,1736089840034,-500.0,0.00020269,3]
[347745297,1736089840045,-637.63997765,0.00020269,3]
[347745298,1736089840057,-500.0,0.00020269,3]
[347745299,1736089840068,-500.0,0.0002027,3]
[347745300,1736089840079,-500.0,0.0002027,3]
[347745301,1736089840090,-500.0,0.0002027,3]
[347745302,1736089840102,-500.0,0.0002027,3]
[347745303,1736089840114,-621.74,0.0002027,3]
[347745304,1736089840126,-500.0,0.0002027,3]
[347745306,1736089840138,-500.0,0.0002027,3]
[347745308,1736089840149,-500.0,0.0002027,3]
[347745310,1736089840161,-375.81,0.0002027,3]
[347745312,1736089840172,-500.0,0.0002027,3]
[347745314,1736089840184,-500.0,0.0002027,3]
[347745315,1736089840196,-500.0,0.0002027,3]
[347745317,1736089840208,-277.65,0.00020271,3]
[347745319,1736089840218,-500.0,0.00020271,3]
[347745321,1736089840231,-632.11,0.00020271,3]
[347745323,1736089840241,-511.49,0.00020271,3]
[347745324,1736089840251,-500.0,0.00020271,3]
[347745326,1736089840264,-616.34,0.00020271,3]
[347745327,1736089840275,-500.0,0.00020271,3]
[347745328,1736089840285,-216.35,0.00020271,3]
[347745330,1736089840296,-500.0,0.00020271,3]
[347745331,1736089840307,-500.0,0.00020271,3]
[347745332,1736089840319,-500.0,0.00020271,3]
[347745333,1736089840332,-277.75,0.00020271,3]
[347745334,1736089840345,-312.27,0.00020271,3]
[347745336,1736089840355,-631.3,0.00020271,3]
[347745337,1736089840367,-166.78,0.00020271,3]
[347745338,1736089840378,-2997.46,0.00020271,3]
[347745339,1736089840389,-500.0,0.00020271,3]
[347745340,1736089840399,-220.3,0.00020271,3]
[347745341,1736089840409,-500.0,0.00020272,3]
[347745343,1736089840420,-154.22,0.00020272,3]
[347745345,1736089840431,-500.0,0.00020272,3]
[347745346,1736089840444,-525.06,0.00020272,3]
[347745347,1736089840454,-500.0,0.00020272,3]
[347745349,1736089840466,-500.0,0.00020272,3]
[347745351,1736089840480,-400.14930254,0.00020273,2]
[347745353,1736089840491,-201.14748096,0.00020273,2]
[347745354,1736089840503,-500.0,0.0002029,2]
[347745355,1736089840514,-153.32178138,0.00020429,2]
[347745356,1736089840525,-212.441301,0.00020447,2]
[347745357,1736089840536,-500.0,0.00020542,3]
[347745358,1736089840547,-500.0,0.00020542,3]
[347745359,1736089840557,-289.41,0.00020542,3]
[347745360,1736089840568,-239.31,0.00020542,3]
[347745361,1736089840579,-283.07150307,0.00020543,3]
[347745362,1736089840590,-500.0,0.00020544,3]
[347745363,1736089840601,-500.0,0.00020544,3]
[347745364,1736089840611,-500.0,0.00020544,3]
[347745365,1736089840622,-236.54,0.00020544,3]
[347745366,1736089840633,-500.0,0.00020544,3]
[347745367,1736089840643,-500.0,0.00020544,3]
[347745368,1736089840654,-307.86,0.00020544,3]
[347745369,1736089840665,-544.34,0.00020544,3]
[347745370,1736089840676,-605.51,0.00020544,3]
[347745371,1736089840686,-201.49,0.00020545,3]
[347745372,1736089840696,-500.0,0.00020545,3]
[347745373,1736089840707,-162.17750412,0.00020545,3]
[347745374,1736089840718,-500.0,0.00020545,3]
[347745375,1736089840730,-500.0,0.00020545,3]
[347745376,1736089840741,-2997.46,0.00020545,3]
[347745377,1736089840752,-197.32,0.00020545,3]
[347745378,1736089840765,-500.0,0.00020546,3]
[347745379,1736089840776,-525.06,0.00020546,3]
[347745380,1736089840786,-500.0,0.00020546,3]
[347745381,1736089840797,-500.0,0.00020546,3]
[347745382,1736089840809,-153.32178138,0.00020606,2]
[347745383,1736089840821,-153.32178138,0.00020782,2]
[347745384,1736089840831,-308.75,0.00020816,3]
[347745385,1736089840843,-756.57,0.00020818,3]
[347745386,1736089840854,-500.0,0.00020818,3]
[347745387,1736089840864,-500.0,0.00020818,3]
[347745388,1736089840874,-500.0,0.00020818,3]
[347745389,1736089840885,-500.0,0.00020818,3]
[347745390,1736089840896,-500.0,0.00020818,3]
[347745391,1736089840907,-500.0,0.00020818,2]
[347745392,1736089840918,-500.0,0.00020818,3]
[347745393,1736089841062,-581.28,0.00020818,3]
[347745394,1736089841073,-500.0,0.00020818,3]
[347745395,1736089841084,-500.0,0.00020818,3]
[347745396,1736089841094,-500.0,0.00020819,3]
[347745397,1736089841104,-500.0,0.00020819,3]
[347745398,1736089841114,-2997.46,0.00020819,3]
[347745399,1736089841123,-525.06,0.0002082,3]
[347745400,1736089841133,-500.0,0.0002082,3]
[347745401,1736089841142,-500.0,0.0002082,3]
[347745402,1736089841151,-153.32178138,0.00020959,2]
[347745403,1736089841161,-756.57,0.00021092,3]
[347745404,1736089841170,-500.0,0.00021092,3]
[347745405,1736089841181,-604.35,0.00021092,3]
[347745406,1736089841190,-500.0,0.00021092,3]
[347745407,1736089841199,-500.0,0.00021092,3]
[347745408,1736089841209,-500.0,0.00021092,3]
[347745409,1736089841219,-465.34,0.00021092,3]
[347745410,1736089841229,-500.0,0.00021093,3]
[347745411,1736089841238,-500.0,0.00021093,3]
[347745412,1736089841247,-2997.46,0.00021093,3]
[347745413,1736089841257,-525.06,0.00021094,3]
[347745414,1736089841267,-500.0,0.00021094,3]
[347745415,1736089841276,-500.0,0.00021094,3]
[347745416,1736089841286,-153.32178138,0.00021135,2]
[347745417,1736089841295,-500.0,0.0002118,2]
[347745418,1736089841305,-153.32178138,0.00021312,2]
[347745419,1736089841315,-756.57,0.00021366,3]
[347745420,1736089841324,-500.0,0.00021366,3]
[347745421,1736089841333,-500.0,0.00021366,3]
[347745422,1736089841343,-500.0,0.00021366,3]
[347745423,1736089841352,-273.03,0.00021366,3]
[347745424,1736089841361,-500.0,0.00021367,3]
[347745425,1736089841371,-500.0,0.00021367,3]
[347745426,1736089841381,-2997.46,0.00021367,3]
[347745427,1736089841391,-525.06,0.00021368,3]
[347745428,1736089841401,-500.0,0.00021368,3]
[347745429,1736089841410,-500.0,0.00021368,3]
[347745430,1736089841420,-1200.0,0.00021454,2]
[347745431,1736089841429,-153.32178138,0.00021488,2]
[347745432,1736089841438,-1015.00139996,0.00021528,2]
[347745433,1736089841448,-5099.0,0.000216,4]
[347745434,1736089841459,-756.57,0.0002164,3]
[347745435,1736089841468,-500.0,0.0002164,3]
[347745436,1736089841478,-500.0,0.0002164,3]
[347745437,1736089841488,-500.0,0.0002164,3]
[347745438,1736089841497,-500.0,0.00021641,3]